bitfinex-derivatives/quotes_ETHF0:USTF0_20250531
["timestamp","ask_amount","ask_price","bid_price","bid_amount"]
[1748681693571,0.07748517,2526.6,2526.5,6.74931]
[1748681693772,0.07748517,2526.6,2526.5,0.79131]
[1748681694174,0.86876517,2526.6,2526.5,0.79131]
[1748681694374,0.07748517,2526.6,2526.5,0.79131]
[1748681694970,0.86876517,2526.6,2526.5,0.79131]
[1748681697775,1.06656517,2526.6,2526.5,0.79131]
[1748681699277,0.27528517,2526.6,2526.5,0.79131]
[1748681699480,0.27528517,2526.6,2526.5,2.13971]
[1748681699877,0.27528517,2526.6,2526.5,8.09771]
[1748681700785,20.34983,2527.1,2526.5,8.09771]
[1748681700786,2.36488919,2527.7,2527.6,0.79097]
[1748681700979,2.36488919,2527.7,2527.6,3.99877]
[1748681701581,2.36488919,2527.7,2527.6,3.2078]
[1748681701782,3.15582919,2527.7,2527.6,3.2078]
[1748681701978,0.79099,2527.6,2527.5,0.791]
[1748681702173,1.3423,2527.6,2527.5,0.791]
[1748681702375,0.79092,2527.8,2527.4,1.29583178]
[1748681702585,0.79092,2527.8,2527.6,0.79095]
[1748681702787,0.79094,2527.7,2527.6,3.2078]
[1748681703788,2.13323,2527.8,2527.6,3.99877]
[1748681703988,1.3423,2527.8,2527.4,1.29583178]
[1748681704180,0.79098,2527.6,2527.5,0.791]
[1748681704491,0.79095,2527.7,2527.5,0.791]
[1748681704689,0.791,2527.5,2527.4,0.00593178]
[1748681705089,1.4501,2527.5,2527.4,0.79696178]
[1748681705481,1.9024,2527.5,2527.4,0.79696178]
[1748681705686,2.6934,2527.5,2527.4,0.00593178]
[1748681707192,7.6934,2527.5,2527.4,0.00593178]
[1748681707790,10.9012,2527.5,2527.4,0.00593178]
[1748681708093,14.9202,2527.5,2527.4,0.00593178]
[1748681709392,9.9202,2527.5,2527.4,0.00593178]
[1748681710492,5.9012,2527.5,2527.4,0.00593178]
[1748681710692,9.9202,2527.5,2527.4,0.00593178]
[1748681716495,9.9152,2527.5,2527.4,0.00593178]
[1748681717597,6.7074,2527.5,2527.4,0.00593178]
[1748681721009,6.77895339,2527.5,2527.4,0.00593178]
[1748681726909,0.79113,2527.1,2527.0,6.5834]
[1748681727105,0.79116,2527.0,2526.9,3.2078]
[1748681727309,1.45596,2527.0,2526.9,3.2078]
[1748681728611,2.69536,2527.0,2526.9,3.2078]
[1748681729617,0.79115,2527.1,2527.0,0.79116]
[1748681729919,0.07155339,2527.5,2527.1,1.97782]
[1748681730103,0.07155339,2527.5,2527.4,0.79103]
[1748681730419,0.79101,2527.5,2527.4,0.79102]
[1748681730914,0.79099,2527.6,2527.5,0.79099]
[1748681731213,0.79098,2527.6,2527.5,0.79098]
[1748681732112,7.2218,2527.8,2527.3,1.2978]
[1748681732310,0.07155339,2527.5,2527.4,0.79103]
[1748681732505,0.07155339,2527.5,2527.4,3.99883]
[1748681732704,0.07155339,2527.5,2527.4,8.99883]
[1748681733507,0.07155339,2527.5,2527.4,3.99883]
[1748681735004,0.07155339,2527.5,2527.4,8.99883]
[1748681735514,0.07155339,2527.5,2527.4,14.95683]
[1748681736513,0.07155339,2527.5,2527.4,9.95683]
[1748681748122,0.07155339,2527.5,2527.4,13.96583]
[1748681753825,0.07155339,2527.5,2527.4,10.75803]
[1748681754026,0.07155339,2527.5,2527.4,13.96583]
[1748681757229,0.07155339,2527.5,2527.4,10.75803]
[1748681757431,0.07155339,2527.5,2527.4,13.96583]
[1748681757823,0.86255339,2527.5,2527.4,9.95683]
[1748681758124,2.20415339,2527.5,2527.4,9.95683]
[1748681758430,2.82865339,2527.5,2527.4,9.95683]
[1748681759128,2.82865339,2527.5,2527.4,3.99883]
[1748681760738,2.03765339,2527.5,2527.4,3.99883]
[1748681761726,2.82865339,2527.5,2527.4,3.99883]
[1748681763326,2.82865339,2527.5,2527.4,3.2078]
[1748681763725,2.82865339,2527.5,2527.2,6.7491]
[1748681763726,0.79106,2527.3,2527.2,6.7491]
[1748681765031,0.7911,2527.2,2527.1,3.9989]
[1748681765235,2.6484,2527.2,2527.1,3.9989]
[1748681767634,2.6484,2527.2,2527.1,3.2078]
[1748681768333,0.79119,2526.9,2526.8,9.1658]
[1748681768632,0.79119,2526.9,2526.8,9.95702]
[1748681769025,0.79119,2526.9,2526.8,9.1658]
[1748681769228,2.15349,2526.9,2526.8,9.1658]
[1748681769631,2.15349,2526.9,2526.8,9.95702]
[1748681770543,2.15349,2526.9,2526.8,9.1658]
[1748681770835,2.15349,2526.9,2526.8,3.99902]
[1748681771034,2.15349,2526.9,2526.8,3.2078]
[1748681772034,0.79122,2526.8,2526.7,0.00593178]
[1748681772234,2.75262,2526.8,2526.7,0.00593178]
[1748681772541,7.75262,2526.8,2526.7,0.00593178]
[1748681773539,11.76262,2526.8,2526.7,0.00593178]
[1748681774433,6.76262,2526.8,2526.7,0.00593178]
[1748681775139,11.76262,2526.8,2526.7,0.00593178]
[1748681776330,12.96502999,2526.8,2526.7,0.00593178]
[1748681776538,11.76262,2526.8,2526.7,0.00593178]
[1748681780926,11.83417339,2526.8,2526.7,0.00593178]
[1748681781638,0.79135,2526.4,2526.3,3.2078]
[1748681782442,2.74085,2526.4,2526.3,3.2078]
[1748681783244,0.79135,2526.4,2526.3,3.99918]
[1748681783541,0.79134,2526.5,2526.4,0.79132]
[1748681783841,0.79134,2526.5,2526.4,2.71042]
[1748681785041,0.00593178,2526.6,2526.5,0.79131]
[1748681785338,0.00593178,2526.6,2526.5,1.44511]
[1748681785552,0.00593178,2526.6,2526.5,2.67841]
[1748681789742,0.79721178,2526.6,2526.5,2.67841]
[1748681790147,0.79721178,2526.6,2526.5,1.8871]
[1748681790339,0.79721178,2526.6,2526.5,2.67841]
[1748681790743,0.79721178,2526.6,2526.5,1.8871]
[1748681793345,0.79721178,2526.6,2526.5,2.67841]
[1748681793543,0.79721178,2526.6,2526.5,1.8871]
[1748681796246,0.86876517,2526.6,2526.5,2.67841]
[1748681797248,0.07748517,2526.6,2526.5,2.67841]
[1748681798452,0.86876517,2526.6,2526.5,2.67841]
[1748681801056,0.86876517,2526.6,2526.5,1.8871]
[1748681802051,0.86876517,2526.6,2526.5,2.67841]
[1748681802353,0.86876517,2526.6,2526.5,1.8871]
[1748681803954,0.86876517,2526.6,2526.5,2.67841]
[1748681805254,0.07748517,2526.6,2526.5,2.67841]
[1748681807848,0.86876517,2526.6,2526.5,2.67841]
[1748681809355,0.86876517,2526.6,2526.5,8.63641]
[1748681813062,0.07748517,2526.6,2526.5,8.63641]
[1748681814064,0.86876517,2526.6,2526.5,8.63641]
[1748681817964,0.07748517,2526.6,2526.5,8.63641]
[1748681818158,0.86876517,2526.6,2526.5,8.63641]
[1748681818963,0.07748517,2526.6,2526.5,8.63641]
[1748681819857,0.86876517,2526.6,2526.5,8.63641]
[1748681820358,0.07748517,2526.6,2526.5,8.63641]
[1748681821362,0.00593178,2526.6,2526.5,8.63641]
[1748681822365,0.07748517,2526.6,2526.5,8.63641]
[1748681828765,3.2078,2527.2,2526.5,16.8431]
[1748681828965,1.3322,2527.5,2527.2,0.79109]
[1748681829169,2.12321,2527.5,2527.4,0.79103]
[1748681829765,0.79103,2527.4,2527.3,2.67454]
[1748681830067,0.79103,2527.4,2527.3,0.6265]
[1748681830263,0.79106,2527.3,2527.2,3.99887]
[1748681830468,0.79113,2527.1,2527.0,5.958]
[1748681831167,2.12093,2527.1,2527.0,6.74916]
[1748681832368,1.3298,2527.1,2527.0,6.74916]
[1748681832962,0.79098,2527.6,2527.1,1.97782]
[1748681833166,5.33373178,2527.7,2527.3,1.97767]
[1748681833362,0.6239,2527.6,2527.5,0.791]
[1748681833965,2.66847,2527.6,2527.5,0.791]
[1748681835069,0.79105,2527.4,2527.3,0.79104]
[1748681836669,2.04463,2527.5,2527.4,0.79103]
[1748681837671,0.6239,2527.6,2527.5,0.791]
[1748681838080,1.41487,2527.6,2527.5,0.791]
[1748681839676,1.48642339,2527.6,2527.5,0.791]
[1748681844783,0.07155339,2527.6,2527.5,6.749]
[1748681845083,0.07155339,2527.6,2527.5,11.3001]
[1748681846081,0.86252339,2527.6,2527.5,11.3001]
[1748681846571,2.14522339,2527.6,2527.5,9.9568]
[1748681848185,2.14522339,2527.6,2527.5,6.749]
[1748681850683,2.14522339,2527.6,2527.5,0.791]
[1748681851077,2.34302339,2527.6,2527.5,0.791]
[1748681853187,0.79103,2527.5,2527.4,0.79101]
[1748681853383,2.06703,2527.5,2527.4,0.79101]
[1748681858993,0.79103,2527.5,2527.4,0.79101]
[1748681862485,2.12303,2527.5,2527.4,0.79101]
[1748681863897,1.332,2527.5,2527.4,0.79101]
[1748681864092,2.123,2527.5,2527.4,0.79101]
[1748681866501,0.79103,2527.4,2527.3,9.1658]
[1748681866796,2.81813,2527.4,2527.3,5.958]
[1748681866991,3.48833,2527.4,2527.3,5.958]
[1748681867198,4.7303287,2527.4,2527.3,5.958]
[1748681868600,0.79112,2527.2,2527.1,0.79111]
[1748681868898,2.04329,2527.3,2527.2,0.7911]
[1748681869204,0.7911,2527.2,2527.1,1.4183]
[1748681871902,0.9889,2527.2,2527.1,1.4183]
[1748681872398,0.79113,2527.1,2527.0,3.99893]
[1748681872602,2.12773,2527.1,2527.0,3.99893]
[1748681873503,1.3366,2527.1,2527.0,3.99893]
[1748681874500,1.3366,2527.1,2527.0,0.79113]
[1748681874900,2.12773,2527.1,2527.0,0.79113]
[1748681876106,0.79116,2527.0,2526.9,3.99896]
[1748681876305,1.41356,2527.0,2526.9,3.99896]
[1748681876607,0.6224,2527.0,2526.9,3.99896]
[1748681876806,1.41356,2527.0,2526.9,3.99896]
[1748681877102,0.6224,2527.0,2526.9,3.99896]
[1748681877706,1.41356,2527.0,2526.9,3.99896]
[1748681878104,1.41356,2527.0,2526.9,3.2078]
[1748681878403,1.41356,2527.0,2526.9,3.99899]
[1748681880609,1.41356,2527.0,2526.9,3.2078]
[1748681880813,1.41356,2527.0,2526.9,3.99899]
[1748681881310,1.41356,2527.0,2526.9,3.2078]
[1748681885412,1.48511339,2527.0,2526.9,3.2078]
[1748681886010,1.68291339,2527.0,2526.9,3.2078]
[1748681890925,1.06051339,2527.0,2526.9,3.2078]
[1748681893628,1.06051339,2527.0,2526.9,3.8595]
[1748681893923,1.06051339,2527.0,2526.9,3.2078]
[1748681894129,1.74351339,2527.0,2526.9,3.2078]
[1748681896625,4.33363161,2527.0,2526.9,3.2078]
[1748681898930,0.79122,2526.8,2526.7,1.9602]
[1748681899931,0.79122,2526.8,2526.7,0.6517]
[1748681900133,0.79125,2526.7,2526.6,3.8509]
[1748681901035,0.79125,2526.7,2526.6,3.2078]
[1748681901435,1.46665,2526.7,2526.6,3.2078]
[1748681902741,2.70777191,2526.7,2526.6,3.2078]
[1748681905541,0.79128,2526.6,2526.5,0.6195]
[1748681905841,2.14988,2526.6,2526.5,0.6195]
[1748681906439,0.79135,2526.4,2526.3,3.2078]
[1748681906640,0.79135,2526.4,2526.3,3.8447]
[1748681908540,1.41705,2526.4,2526.3,3.8447]
[1748681908742,0.79141,2526.2,2526.1,0.00593178]
[1748681915744,0.86296339,2526.2,2526.1,0.00593178]
[1748681917846,1.06086339,2526.2,2526.1,0.00593178]
[1748681929060,2.38456339,2526.2,2526.1,0.00593178]
[1748681930060,3.62637372,2526.2,2526.1,0.00593178]
[1748681936458,4.26357372,2526.2,2526.1,0.00593178]
[1748681940767,6.26767372,2526.2,2526.1,0.00593178]
[1748681943173,7.62817372,2526.2,2526.1,0.00593178]
[1748681944575,0.79156,2525.7,2525.6,1.2918]
[1748681945073,2.03337033,2525.7,2525.6,1.2918]
[1748681945273,0.79163,2525.5,2525.4,1.2994]
[1748681946077,2.69314033,2525.5,2525.4,1.2994]
[1748681946373,0.79169,2525.3,2525.2,1.29773178]
[1748681946573,0.79169,2525.3,2525.2,0.00593178]
[1748681947873,2.12179,2525.3,2525.2,0.00593178]
[1748681948670,3.36589351,2525.3,2525.2,0.00593178]
[1748681949077,7.33189351,2525.3,2525.2,0.00593178]
[1748681950072,6.08779,2525.3,2525.2,0.00593178]
[1748681950568,6.28569,2525.3,2525.2,0.00593178]
[1748681957775,6.49799398,2525.3,2525.2,0.00593178]
[1748681958082,6.28569,2525.3,2525.2,0.00593178]
[1748681958275,0.79182,2524.9,2524.8,3.8785]
[1748681958475,0.79182,2524.9,2524.8,0.6707]
[1748681958672,4.75882,2524.9,2524.8,0.6707]
[1748681958872,0.79188,2524.7,2524.6,0.6343]
[1748681961589,0.79188,2524.7,2524.6,1.9183]
[1748681966497,19.06788,2524.7,2524.6,1.9183]
[1748681966801,19.26588,2524.7,2524.6,1.9183]
[1748681967200,0.98988,2524.7,2524.6,1.9183]
[1748681967403,19.26588,2524.7,2524.6,1.9183]
[1748681970799,23.22288,2524.7,2524.6,1.9183]
[1748681976003,24.47036779,2524.7,2524.6,1.9183]
[1748681976403,6.19536779,2524.7,2524.6,1.9183]
[1748681976598,24.46736779,2524.7,2524.6,1.9183]
[1748681976800,1.44548779,2524.7,2524.6,7.71021]
[1748681977003,0.198,2524.7,2524.6,10.91801]
[1748681977403,0.98988,2524.7,2524.6,10.91801]
[1748681978406,0.98988,2524.7,2524.6,5.91801]
[1748681978902,0.198,2524.7,2524.6,16.87601]
[1748681979801,0.98988,2524.7,2524.6,16.87601]
[1748681981705,1.06143339,2524.7,2524.6,16.87601]
[1748681983209,0.26955339,2524.7,2524.6,16.87601]
[1748681983406,0.26955339,2524.7,2524.6,11.87601]
[1748681984809,1.06143339,2524.7,2524.6,11.87601]
[1748681985203,0.26955339,2524.7,2524.6,11.87601]
[1748681985400,1.06143339,2524.7,2524.6,11.87601]
[1748681988203,0.26955339,2524.7,2524.6,11.87601]
[1748681988609,0.00593178,2524.9,2524.8,0.79185]
[1748681989408,0.00593178,2524.9,2524.8,1.42685]
[1748681990107,0.00593178,2524.9,2524.8,6.42685]
[1748681990308,0.00593178,2524.9,2524.8,7.74225]
[1748681992210,0.00593178,2524.9,2524.8,10.95005]
[1748681992414,0.00593178,2524.9,2524.8,5.95005]
[1748681993308,0.79775178,2524.9,2524.8,5.95005]
[1748681995714,0.79775178,2524.9,2524.8,11.90805]
[1748681997610,0.00593178,2524.9,2524.8,11.90805]
[1748681999615,0.79775178,2524.9,2524.8,11.90805]
[1748682000019,0.79775178,2524.9,2524.8,10.59265]
[1748682000215,2.14765178,2524.9,2524.8,4.63465]
[1748682000514,2.14765178,2524.9,2524.8,3.99965]
[1748682000710,2.14765178,2524.9,2524.8,4.67765]
[1748682000909,0.00593178,2524.9,2524.8,4.67765]
[1748682001319,0.00593178,2524.9,2524.8,5.93585]
[1748682001813,0.00593178,2524.9,2524.8,2.72805]
[1748682002115,0.79775178,2524.9,2524.8,5.93585]
[1748682002616,0.79775178,2524.9,2524.8,3.8858]
[1748682002811,2.11735178,2524.9,2524.8,3.2078]
[1748682003312,2.11735178,2524.9,2524.8,3.99965]
[1748682003619,2.11735178,2524.9,2524.8,3.2078]
[1748682004821,2.11735178,2524.9,2524.8,3.99965]
[1748682005119,2.18890517,2524.9,2524.8,3.99965]
[1748682006118,2.18890517,2524.9,2524.8,3.2078]
[1748682006521,2.18890517,2524.9,2524.8,3.99965]
[1748682007123,0.07748517,2524.9,2524.8,3.99965]
[1748682007915,0.79171,2525.3,2524.9,0.79182]
[1748682008117,0.79168,2525.4,2525.3,0.79166]
[1748682010318,2.13668,2525.4,2525.3,0.79166]
[1748682010524,0.79169,2525.3,2525.2,2.7452]
[1748682010913,0.79169,2525.3,2525.2,1.4147]
[1748682012321,0.79169,2525.3,2525.2,2.7518]
[1748682013520,0.79169,2525.3,2525.2,8.7098]
[1748682014527,2.13668,2525.4,2525.3,0.79169]
[1748682015526,0.79168,2525.4,2525.3,0.79169]
[1748682015726,0.79168,2525.4,2525.3,2.12739]
[1748682018529,0.79165,2525.5,2525.4,0.79166]
[1748682020227,0.79165,2525.5,2525.4,3.99946]
[1748682020929,1.41175,2525.5,2525.4,3.99946]
[1748682021335,0.79165,2525.5,2525.4,3.99946]
[1748682022530,0.00593178,2525.6,2525.5,0.79163]
[1748682022733,0.00593178,2525.6,2525.5,2.14893]
[1748682023722,0.00593178,2525.6,2525.5,2.78713]
[1748682024131,0.00593178,2525.6,2525.5,8.74513]
[1748682024322,0.79151,2525.9,2525.8,0.79153]
[1748682024526,1.42209,2526.0,2525.9,0.7915]
[1748682024923,2.06085,2526.2,2526.1,0.79144]
[1748682025128,0.7915,2526.0,2525.9,0.79146]
[1748682026333,0.7915,2525.9,2525.8,5.958]
[1748682026631,2.1064,2525.9,2525.8,5.958]
[1748682027234,0.79153,2525.8,2525.7,0.00593178]
[1748682027536,3.39153,2525.8,2525.7,0.00593178]
[1748682036535,4.63559442,2525.8,2525.7,0.00593178]
[1748682041240,3.20176442,2525.8,2525.7,0.79749178]
[1748682041439,1.24406442,2525.8,2525.7,0.79749178]
[1748682041654,2.03559442,2525.8,2525.7,0.79749178]
[1748682042045,0.79153,2525.8,2525.7,0.79749178]
[1748682042340,0.79153,2525.8,2525.7,2.08979178]
[1748682043043,0.79153,2525.8,2525.7,8.04779178]
[1748682043632,0.86308339,2525.8,2525.7,8.04779178]
[1748682043941,0.86308339,2525.8,2525.7,8.72869178]
[1748682044743,0.86308339,2525.8,2525.7,7.93713178]
[1748682045543,0.86308339,2525.8,2525.7,8.72869178]
[1748682046043,0.86308339,2525.8,2525.7,7.93713178]
[1748682048742,0.86308339,2525.8,2525.7,6.64483178]
[1748682048946,0.86308339,2525.8,2525.7,0.00593178]
[1748682049150,4.80108339,2525.8,2525.7,0.00593178]
[1748682049344,0.79169,2525.3,2525.2,10.57862]
[1748682049542,0.79169,2525.3,2525.2,4.62062]
[1748682050245,0.79169,2525.3,2525.2,5.95992]
[1748682052050,0.79169,2525.3,2525.2,5.1682]
[1748682052852,0.79169,2525.3,2525.2,5.95992]
[1748682054947,0.79169,2525.3,2525.2,11.91792]
[1748682057054,0.79168,2525.4,2525.3,0.79166]
[1748682057355,0.79168,2525.4,2525.3,2.12176]
[1748682062352,0.79164,2525.5,2525.4,0.79161]
[1748682062652,0.79164,2525.5,2525.4,2.72051]
[1748682063061,0.79164,2525.5,2525.4,0.6208]
[1748682063358,0.79164,2525.5,2525.4,1.41246]
[1748682063658,0.79164,2525.5,2525.4,0.6208]
[1748682063860,0.79169,2525.4,2525.3,0.79167]
[1748682064262,0.79169,2525.3,2525.2,9.7869]
[1748682064455,2.70599,2525.3,2525.2,9.7869]
[1748682064858,18.01072,2525.3,2524.6,3.2078]
[1748682065052,0.79188,2524.7,2524.6,3.2078]
[1748682065458,0.79188,2524.7,2524.6,3.99971]
[1748682065754,0.79188,2524.7,2524.6,3.2078]
[1748682071666,0.79194,2524.5,2524.4,0.00395454]
[1748682072357,1.41654,2524.5,2524.4,0.00395454]
[1748682073666,4.62434,2524.5,2524.4,0.00395454]
[1748682073964,5.28184,2524.5,2524.4,0.00395454]
[1748682074667,9.41084,2524.5,2524.4,0.00395454]
[1748682075159,0.7921,2524.0,2523.9,7.737]
[1748682075458,0.7921,2524.0,2523.9,3.834]
[1748682075659,0.7921,2524.0,2523.9,5.127]
[1748682076766,0.7921,2524.0,2523.9,5.91913]
[1748682077566,3.23295,2524.3,2523.9,5.91913]
[1748682077863,0.79208,2524.1,2524.0,0.79209]
[1748682078068,0.79208,2524.1,2524.0,1.293]
[1748682078261,1.2529,2524.3,2524.1,0.79205]
[1748682078461,10.59882,2524.5,2524.3,0.79198]
[1748682078462,0.79198,2524.4,2524.3,0.79198]
[1748682078958,0.8226,2524.5,2524.1,1.3095]
[1748682079164,0.8226,2524.5,2524.3,0.79198]
[1748682079165,0.79197,2524.4,2524.3,0.79198]
[1748682079364,0.79197,2524.4,2524.3,2.10148]
[1748682081365,0.98997,2524.5,2524.4,0.79197]
[1748682081559,0.98997,2524.5,2524.4,2.02807]
[1748682081759,0.198,2524.5,2524.4,2.02807]
[1748682082766,0.00593178,2524.9,2524.8,0.79185]
[1748682083367,0.00593178,2524.9,2524.8,2.02795]
[1748682086273,0.79775178,2524.9,2524.8,2.02795]
[1748682086473,0.79185,2524.8,2524.7,8.53436]
[1748682087365,0.79185,2524.8,2524.7,4.63136]
[1748682092869,0.79185,2524.8,2524.7,3.8395]
[1748682093073,0.79185,2524.8,2524.7,4.63138]
[1748682093772,0.79185,2524.8,2524.7,5.24718]
[1748682098472,0.79185,2524.8,2524.7,4.4553]
[1748682098681,0.79185,2524.8,2524.7,3.2078]
[1748682098986,0.79197,2524.4,2524.3,3.2078]
[1748682099280,0.79197,2524.4,2524.3,4.6267]
[1748682099482,0.79197,2524.4,2524.3,3.8347]
[1748682099780,0.79197,2524.4,2524.3,3.2078]
[1748682099977,2.07817,2524.4,2524.3,3.2078]
[1748682100881,0.79203,2524.2,2524.1,0.79204]
[1748682101681,2.07819,2524.4,2524.3,0.792]
[1748682101978,0.79201,2524.3,2524.2,0.79201]
[1748682102484,0.79203,2524.2,2524.1,2.02735]
[1748682102982,0.79207,2524.1,2524.0,3.8339]
[1748682103181,1.42767,2524.1,2524.0,3.8339]
[1748682103377,0.6356,2524.1,2524.0,4.626]
[1748682103680,0.79205,2524.2,2524.1,0.79207]
[1748682104688,0.198,2524.5,2524.4,0.79197]
[1748682105579,0.198,2524.5,2524.4,2.13877]
[1748682105772,0.198,2524.5,2524.4,3.39587]
[1748682107293,0.79777178,2524.9,2524.8,0.79185]
[1748682107984,0.79777178,2524.9,2524.8,0.6767]
[1748682108687,0.79777178,2524.9,2524.8,1.46855]
[1748682108885,0.79777178,2524.9,2524.8,0.6767]
[1748682109077,0.79185,2524.8,2524.7,3.2078]
[1748682109380,2.70275,2524.8,2524.7,3.2078]
[1748682109981,0.79191,2524.6,2524.5,3.903]
[1748682111084,0.792,2524.4,2524.2,3.99981]
[1748682111787,1.4197,2524.4,2524.3,0.792]
[1748682112087,1.4197,2524.4,2524.2,3.2078]
[1748682112088,0.792,2524.3,2524.2,3.99982]
[1748682112289,1.4197,2524.4,2524.3,0.792]
[1748682112485,0.6277,2524.4,2524.2,3.2078]
[1748682112684,0.792,2524.3,2524.2,3.99982]
[1748682112890,1.4197,2524.4,2524.3,0.792]
[1748682115983,0.792,2524.3,2524.2,3.99981]
[1748682117883,0.792,2524.3,2524.2,3.2078]
[1748682118388,2.1474,2524.3,2524.2,3.2078]
[1748682119593,0.792,2524.3,2524.2,3.99983]
[1748682122391,0.792,2524.3,2524.2,3.2078]
[1748682123293,2.0609,2524.3,2524.2,3.2078]
[1748682123598,2.0609,2524.3,2524.2,3.99983]
[1748682123800,0.792,2524.3,2524.2,3.99983]
[1748682124899,0.792,2524.3,2524.2,3.2078]
[1748682125695,0.792,2524.3,2524.2,3.99983]
[1748682125897,0.792,2524.3,2524.2,3.2078]
[1748682126605,1.98022,2524.1,2523.9,3.2078]
[1748682126792,0.7921,2524.0,2523.9,3.2078]
[1748682126996,1.4601,2524.0,2523.9,3.2078]
[1748682127597,1.4601,2524.0,2523.9,3.99993]
[1748682127795,0.79209,2524.1,2524.0,0.7921]
[1748682128001,0.79209,2524.1,2524.0,2.088]
[1748682129303,0.79209,2524.1,2524.0,1.2959]
[1748682129597,0.79209,2524.1,2524.0,2.088]
[1748682130202,0.79209,2524.1,2524.0,1.2959]
[1748682130405,0.79209,2524.1,2524.0,2.088]
[1748682131204,0.79209,2524.1,2524.0,1.2959]
[1748682132604,0.99009,2524.1,2524.0,1.2959]
[1748682134706,0.99009,2524.1,2524.0,2.088]
[1748682135205,0.198,2524.1,2524.0,2.088]
[1748682137506,0.79197,2524.5,2524.4,0.79194]
[1748682137704,0.79197,2524.5,2524.4,2.76794]
[1748682138403,0.79197,2524.5,2524.4,1.976]
[1748682138602,0.79197,2524.4,2524.3,0.79199]
[1748682138908,2.60222,2524.6,2524.2,3.9998]
[1748682138909,0.792,2524.3,2524.2,3.9998]
[1748682139109,0.792,2524.3,2524.2,5.2649]
[1748682142811,0.198,2524.4,2524.3,0.792]
[1748682143013,0.198,2524.4,2524.3,2.1172]
[1748682144113,0.98997,2524.4,2524.3,2.1172]
[1748682144414,0.98997,2524.4,2524.3,0.792]
[1748682145010,0.792,2524.3,2524.2,3.99981]
[1748682145211,0.98999,2524.4,2524.3,0.792]
[1748682146210,0.198,2524.4,2524.3,0.792]
[1748682146612,0.198,2524.4,2524.3,2.0728]
[1748682148421,0.198,2524.4,2524.3,5.9758]
[1748682149917,0.198,2524.4,2524.3,10.9758]
[1748682153618,0.198,2524.4,2524.3,5.9758]
[1748682153924,0.98997,2524.4,2524.3,4.695]
[1748682154225,2.28507,2524.4,2524.3,4.695]
[1748682156720,0.792,2524.3,2524.2,3.2078]
[1748682156926,0.79213,2524.0,2523.9,3.99992]
[1748682157424,0.79213,2524.0,2523.9,3.2078]
[1748682157623,0.79213,2524.0,2523.9,3.99993]
[1748682158023,0.79213,2524.0,2523.9,3.2078]
[1748682158225,0.79213,2524.0,2523.9,3.99993]
[1748682159713,2.04789,2524.1,2524.0,0.7921]
[1748682160425,1.2558,2524.1,2524.0,0.7921]
[1748682160823,2.04787,2524.1,2524.0,0.7921]
[1748682164326,0.7921,2524.0,2523.9,3.99991]
[1748682164524,2.1037,2524.0,2523.9,3.99991]
[1748682165528,1.3116,2524.0,2523.9,3.99991]
[1748682167233,2.1037,2524.0,2523.9,3.2078]
[1748682167529,2.1037,2524.0,2523.9,3.99993]
[1748682167733,2.3017,2524.0,2523.9,3.99993]
[1748682168938,2.3017,2524.0,2523.9,3.2078]
[1748682169734,2.3017,2524.0,2523.9,3.99993]
[1748682169934,2.3017,2524.0,2523.9,3.2078]
[1748682170334,2.3017,2524.0,2523.9,3.99993]
[1748682170537,2.3017,2524.0,2523.9,3.2078]
[1748682177835,0.79216,2523.8,2523.7,0.79218]
[1748682178036,0.79216,2523.8,2523.7,3.99998]
[1748682178348,0.79216,2523.8,2523.7,3.2078]
[1748682178649,2.08316,2523.8,2523.7,3.2078]
[1748682180345,1.291,2523.8,2523.7,3.99999]
[1748682180547,2.05323,2523.9,2523.8,0.79216]
[1748682180738,0.79213,2523.9,2523.8,1.41566]
[1748682180940,0.79213,2523.9,2523.8,2.75806]
[1748682181140,0.99012,2524.0,2523.9,0.79213]
[1748682181947,0.99012,2524.0,2523.9,2.04643]
[1748682182448,0.198,2524.0,2523.9,2.04643]
[1748682182837,0.198,2524.0,2523.9,7.04643]
[1748682183044,3.2078,2524.6,2524.5,0.79194]
[1748682183253,0.79191,2524.6,2524.5,0.79194]
[1748682183451,2.08755275,2524.6,2524.5,0.79194]
[1748682183651,1.29564275,2524.6,2524.5,0.79194]
[1748682183954,3.905,2524.8,2524.4,3.23423]
[1748682184158,0.79185,2524.8,2524.7,0.79188]
[1748682184349,0.00593178,2524.9,2524.6,0.79189]
[1748682184552,1.29641358,2524.7,2524.6,0.79189]
[1748682185658,0.79186,2524.8,2524.7,0.79188]
[1748682185953,0.79777178,2524.9,2524.8,0.79185]
[1748682186163,0.00593178,2524.9,2524.8,3.99965]
[1748682186760,0.79775178,2524.9,2524.8,3.2078]
[1748682187154,0.00593178,2524.9,2524.8,3.99965]
[1748682187856,0.79775178,2524.9,2524.8,3.2078]
[1748682188261,0.79775178,2524.9,2524.5,3.904]
[1748682188262,0.79192,2524.6,2524.5,3.2078]
[1748682190357,0.79192,2524.6,2524.5,3.99974]
[1748682191560,0.79192,2524.6,2524.5,0.79194]
[1748682192061,0.79195,2524.5,2524.4,0.79196]
[1748682192259,0.79197,2524.4,2524.3,4.63839]
[1748682192455,0.79197,2524.4,2524.3,3.8464]
[1748682193258,0.79197,2524.4,2524.3,4.6384]
[1748682194660,3.90993178,2524.9,2524.6,0.7919]
[1748682194957,6.54509178,2524.9,2524.5,0.79192]
[1748682195254,0.79192,2524.6,2524.5,0.79192]
[1748682195460,1.29391768,2524.8,2524.7,0.79188]
[1748682195663,0.79185,2524.8,2524.7,0.79188]
[1748682196160,0.79776178,2524.9,2524.8,0.79185]
[1748682196565,0.00593178,2524.9,2524.8,0.79185]
[1748682198964,0.79775178,2524.9,2524.8,0.79185]
[1748682199661,0.00593178,2524.9,2524.8,0.79185]